bitfinex/quotes_BTCUSD_20230106
["timestamp","ask_amount","ask_price","bid_price","bid_amount"]
[1672991500550,2.40606035,16802.0,16801.0,1.18167643]
[1672991500796,1.87002324,16802.0,16801.0,1.18167643]
[1672991502483,2.40606063,16802.0,16801.0,1.18167643]
[1672991502786,1.87002324,16802.0,16801.0,1.18167643]
[1672991503031,1.8108943,16802.0,16801.0,1.18167643]
[1672991503288,2.4060613,16802.0,16801.0,1.18167643]
[1672991503521,1.8108943,16802.0,16801.0,1.18167643]
[1672991504452,2.4060613,16802.0,16801.0,1.18167643]
[1672991505208,2.48168824,16802.0,16801.0,1.18167643]
[1672991505439,2.40606118,16802.0,16801.0,1.18167643]
[1672991505663,1.87002324,16802.0,16801.0,1.18167643]
[1672991506123,2.40606082,16802.0,16801.0,1.18167643]
[1672991506350,1.81089382,16802.0,16801.0,1.18167643]
[1672991508157,2.40606082,16802.0,16801.0,1.18167643]
[1672991508674,1.81089382,16802.0,16801.0,1.18167643]
[1672991509465,1.27899182,16802.0,16801.0,1.18167643]
[1672991510780,2.48582382,16802.0,16801.0,1.18167643]
[1672991512578,1.89065682,16802.0,16801.0,1.18167643]
[1672991512841,2.48582382,16802.0,16801.0,1.18167643]
[1672991517481,1.87415882,16802.0,16801.0,1.18167643]
[1672991520919,1.87415882,16802.0,16801.0,1.18160831]
[1672991522237,1.27899182,16802.0,16801.0,1.18160831]
[1672991523171,1.87415882,16802.0,16801.0,1.18160831]
[1672991524526,1.27899182,16802.0,16801.0,1.18160831]
[1672991526481,1.87415882,16802.0,16801.0,1.18160831]
[1672991526734,1.27899182,16802.0,16801.0,1.18160831]
[1672991545553,1.27899182,16802.0,16801.0,1.18150501]
[1672991547606,0.14778724,16802.0,16801.0,1.18150501]
[1672991549220,0.68382482,16802.0,16801.0,1.18150501]
[1672991549441,1.27899182,16802.0,16801.0,1.18150501]
[1672991551996,0.68382482,16802.0,16801.0,1.18150501]
[1672991552977,0.14778724,16802.0,16801.0,1.18150501]
[1672991566078,0.14778724,16802.0,16801.0,1.18140803]
[1672991567926,0.68382482,16802.0,16801.0,1.18140803]
[1672991568795,0.14778724,16802.0,16801.0,1.18140803]
[1672991573087,0.14778724,16802.0,16801.0,1.78746037]
[1672991573346,0.5943899,16802.0,16801.0,2.42943861]
[1672991573606,0.5943899,16802.0,16801.0,1.82338627]
[1672991583209,0.14778724,16802.0,16801.0,1.82338627]
[1672991586655,0.14778724,16802.0,16801.0,1.82330717]
[1672991594516,1.27899182,16802.0,16801.0,1.82330717]
[1672991596081,1.89065682,16802.0,16801.0,1.82330717]
[1672991597138,1.27899182,16802.0,16801.0,1.82330717]
[1672991598934,0.74295424,16802.0,16801.0,1.82330717]
[1672991604743,0.14778724,16802.0,16801.0,1.82330717]
[1672991606326,0.59438153,16802.0,16801.0,1.82330717]
[1672991607503,0.59438362,16802.0,16801.0,1.82330717]
[1672991607766,0.14778724,16802.0,16801.0,1.82330717]
[1672991608018,0.59438363,16802.0,16801.0,1.82330717]
[1672991608753,0.59438363,16802.0,16801.0,1.82320416]
[1672991612806,0.14778724,16802.0,16801.0,1.18122592]
[1672991613066,0.74295424,16802.0,16801.0,1.18122592]
[1672991613831,0.14778724,16802.0,16801.0,1.18122592]
[1672991631174,0.14778724,16802.0,16801.0,1.18113344]
[1672991631696,0.68382482,16802.0,16801.0,1.18113344]
[1672991631958,1.27899182,16802.0,16801.0,1.18113344]
[1672991632543,0.74295424,16802.0,16801.0,1.18113344]
[1672991632687,1.27899182,16802.0,16801.0,1.18113344]
[1672991633207,0.74295424,16802.0,16801.0,1.18113344]
[1672991637294,1.27899182,16802.0,16801.0,1.18113344]
[1672991638336,0.74295424,16802.0,16801.0,1.18113344]
[1672991640099,0.74284626,16802.0,16801.0,1.18113344]
[1672991646394,1.32653641,16802.0,16801.0,1.18113344]
[1672991646677,2.45774099,16802.0,16801.0,1.18113344]
[1672991647980,3.06940599,16802.0,16801.0,1.18113344]
[1672991649733,2.45774099,16802.0,16801.0,1.18113344]
[1672991650456,3.06940599,16802.0,16801.0,1.18113344]
[1672991664685,3.06940599,16802.0,16801.0,1.18107038]
[1672991666243,2.47423899,16802.0,16801.0,1.18107038]
[1672991666466,1.86257399,16802.0,16801.0,1.18107038]
[1672991666982,2.47423899,16802.0,16801.0,1.18107038]
[1672991669324,1.86257399,16802.0,16801.0,1.18107038]
[1672991671000,2.47423899,16802.0,16801.0,1.18107038]
[1672991672193,2.72423899,16802.0,16801.0,1.18107038]
[1672991673592,2.11257399,16802.0,16801.0,1.18107038]
[1672991675212,2.70774099,16802.0,16801.0,1.18107038]
[1672991675476,2.1124948,16802.0,16801.0,1.18107038]
[1672991676035,1.8624948,16802.0,16801.0,1.18107038]
[1672991682802,1.32645722,16802.0,16801.0,1.18107038]
[1672991683062,1.8624948,16802.0,16801.0,1.18107038]
[1672991683609,1.32645722,16802.0,16801.0,1.18107038]
[1672991684129,2.1124948,16802.0,16801.0,1.18107038]
[1672991684382,1.57645722,16802.0,16801.0,1.18107038]
[1672991685672,2.1124948,16802.0,16801.0,1.18107038]
[1672991689163,1.57645722,16802.0,16801.0,1.18107038]
[1672991690261,2.1124948,16802.0,16801.0,1.18107038]
[1672991694316,2.1124948,16802.0,16801.0,1.14619871]
[1672991694817,1.52880465,16802.0,16801.0,1.14619871]
[1672991695117,0.39760007,16802.0,16801.0,1.14619871]
[1672991699605,0.99276707,16802.0,16801.0,1.14619871]
[1672991700634,0.99276707,16802.0,16801.0,1.13436741]
[1672991701955,0.74276707,16802.0,16801.0,1.13436741]
[1672991703022,2.40400513,16802.0,16801.0,1.13436741]
[1672991703255,2.99917213,16802.0,16801.0,1.13436741]
[1672991703506,2.38750713,16802.0,16801.0,1.13436741]
[1672991704236,1.85146955,16802.0,16801.0,1.13436741]
[1672991704503,1.25630255,16802.0,16801.0,1.13436741]
[1672991705258,1.50630255,16802.0,16801.0,1.13436741]
[1672991707923,2.04234013,16802.0,16801.0,1.13436741]
[1672991711365,1.25630255,16802.0,16801.0,1.13436741]
[1672991711938,1.50630255,16802.0,16801.0,1.13436741]
[1672991715290,1.25630255,16802.0,16801.0,1.13436741]
[1672991715950,1.79234013,16802.0,16801.0,1.13436741]
[1672991717498,2.11560574,16802.0,16801.0,1.13436741]
[1672991717756,2.71077274,16802.0,16801.0,1.13436741]
[1672991718009,2.99917213,16802.0,16801.0,1.13436741]
[1672991718508,2.38750713,16802.0,16801.0,1.13436741]
[1672991723994,2.38750713,16802.0,16801.0,1.13425656]
[1672991738280,1.79234013,16802.0,16801.0,1.13425656]
[1672991739367,1.25630255,16802.0,16801.0,1.13425656]
[1672991739634,1.79234013,16802.0,16801.0,1.13425656]
[1672991739890,1.25630255,16802.0,16801.0,1.13425656]
[1672991745469,1.85146955,16802.0,16801.0,1.13425656]
[1672991745731,1.85146955,16802.0,16801.0,1.13416355]
[1672991745990,1.25630255,16802.0,16801.0,1.13416355]
[1672991746543,1.79234013,16802.0,16801.0,1.13416355]
[1672991747318,1.25630255,16802.0,16801.0,1.13416355]
[1672991750450,1.79234013,16802.0,16801.0,1.13416355]
[1672991753626,2.38750713,16802.0,16801.0,1.13416355]
[1672991753876,1.25630255,16802.0,16801.0,1.13416355]
[1672991767163,0.66113555,16802.0,16801.0,1.13406618]
[1672991767876,0.66113555,16802.0,16801.0,1.14256618]
[1672991769657,0.69113555,16802.0,16801.0,1.14256618]
[1672991777511,1.13777909,16802.0,16801.0,1.08314693]
[1672991777778,0.69113555,16802.0,16801.0,1.08314693]
[1672991778030,0.69113555,16802.0,16801.0,1.15142309]
[1672991778291,1.13777936,16802.0,16801.0,1.15142309]
[1672991781821,0.69113555,16802.0,16801.0,1.15142309]
[1672991790742,0.69113555,16802.0,16801.0,1.15133037]
[1672991803394,1.82234013,16802.0,16801.0,1.15133037]
[1672991811104,2.41750713,16802.0,16801.0,1.15133037]
[1672991814329,2.71877394,16802.0,16801.0,1.15133037]
[1672991814579,3.33043894,16802.0,16801.0,1.15133037]
[1672991815104,2.41750713,16802.0,16801.0,1.1512185]
[1672991837813,2.41750713,16802.0,16801.0,1.15111515]
[1672991854319,1.36793407,16802.0,16801.0,1.15111515]
[1672991861215,1.36793407,16802.0,16801.0,1.15102412]
[1672991862194,1.30880465,16802.0,16801.0,1.15102412]
[1672991862465,0.77276707,16802.0,16801.0,1.15102412]
[1672991864754,0.77265755,16802.0,16801.0,1.15102412]
[1672991865761,1.30869513,16802.0,16801.0,1.15102412]
[1672991870713,1.82663604,16802.0,16801.0,1.15102412]
[1672991871244,2.42180304,16802.0,16801.0,1.15102412]
[1672991871497,3.03346804,16802.0,16801.0,1.15102412]
[1672991871752,2.42180304,16802.0,16801.0,1.15102412]
[1672991872004,3.03346804,16802.0,16801.0,1.15102412]
[1672991873292,2.42180304,16802.0,16801.0,1.15102412]
[1672991873779,3.03346804,16802.0,16801.0,1.15102412]
[1672991874029,2.42180304,16802.0,16801.0,1.15102412]
[1672991882723,1.29059846,16802.0,16801.0,1.15102412]
[1672991884050,1.82663604,16802.0,16801.0,1.15102412]
[1672991884312,1.29059846,16802.0,16801.0,1.15102412]
[1672991884835,3.03346804,16802.0,16801.0,1.15102412]
[1672991885616,2.42180304,16802.0,16801.0,1.15102412]
[1672991886334,3.03346804,16802.0,16801.0,1.15102412]
[1672991886600,2.42180304,16802.0,16801.0,1.15102412]
[1672991887655,2.42180304,16802.0,16801.0,1.15091104]
[1672991888442,3.03346804,16802.0,16801.0,1.15091104]
[1672991889520,2.42180304,16802.0,16801.0,1.15091104]
[1672991893983,3.03346804,16802.0,16801.0,1.15091104]
[1672991907877,3.03346804,16802.0,16801.0,1.15080967]
[1672991908407,2.51552713,16802.0,16801.0,1.15080967]
[1672991908654,1.90386213,16802.0,16801.0,1.15080967]
[1672991911830,1.90378328,16802.0,16801.0,1.15080967]
[1672991918348,2.51544828,16802.0,16801.0,1.15080967]
[1672991919948,1.90378328,16802.0,16801.0,1.15080967]
[1672991931529,2.51544828,16802.0,16801.0,1.15080967]
[1672991932540,1.90378328,16802.0,16801.0,1.15080967]
[1672991932812,1.90378328,16802.0,16801.0,1.15072004]
[1672991933571,2.51544828,16802.0,16801.0,1.15072004]
[1672991933790,1.90378328,16802.0,16801.0,1.15072004]
[1672991940615,2.15367771,16802.0,16801.0,1.15072004]
[1672991942323,1.90378328,16802.0,16801.0,1.15072004]
[1672991944790,1.90378328,16802.0,16801.0,0.07677616]
[1672991950536,1.30861628,16802.0,16801.0,0.07677616]
[1672991953770,1.90378328,16802.0,16801.0,0.07677616]
[1672991956248,1.90378328,16802.0,16801.0,0.07668197]
[1672991977159,1.90378328,16802.0,16801.0,0.07659199]
[1672991986866,1.30861628,16802.0,16801.0,0.07659199]
[1672991990018,1.30861628,16802.0,16801.0,0.57659199]
[1672991990293,0.71344928,16802.0,16801.0,0.78941208]
[1672991990550,0.71344928,16802.0,16801.0,1.38597601]
[1672991990815,0.71344928,16802.0,16801.0,1.31852592]
[1672991991595,0.71344928,16802.0,16801.0,1.31839847]
[1672991991825,0.71344928,16802.0,16801.0,1.61839847]
[1672991992309,0.71344928,16802.0,16801.0,0.72196199]
[1672991992564,0.71344928,16802.0,16801.0,0.22196199]
[1672991994788,0.98096817,16802.0,16801.0,0.07659199]
[1672991995797,0.98096817,16802.0,16801.0,1.02196199]
[1672991996307,1.03339155,16802.0,16801.0,1.02196199]
[1672991996752,1.30119856,16802.0,16801.0,1.02196199]
[1672991998298,1.30111616,16802.0,16801.0,0.78396426]
[1672991998835,1.30111616,16802.0,16801.0,0.52196199]
[1672991999309,1.30111616,16802.0,16801.0,0.07659199]
[1672992000348,0.60177565,16802.0,16801.0,0.07659199]
[1672992000864,0.15535539,16802.0,16801.0,0.07659199]
[1672992002649,0.15535539,16802.0,16801.0,0.47659199]
[1672992002906,0.15535539,16802.0,16801.0,0.07659199]
[1672992006907,0.75052239,16802.0,16801.0,0.07659199]
[1672992009936,1.19673938,16802.0,16801.0,0.07659199]
[1672992011493,1.29375969,16802.0,16801.0,0.07659199]
[1672992012774,2.49230419,16802.0,16801.0,0.07659199]
[1672992013070,2.50059169,16802.0,16801.0,0.07659199]
[1672992013754,1.95735439,16802.0,16801.0,0.07659199]
[1672992014001,1.34568939,16802.0,16801.0,0.07659199]
[1672992016632,1.34568939,16802.0,16801.0,0.07753011]
[1672992017866,1.34568939,16802.0,16801.0,0.07659199]
[1672992021147,1.34568939,16802.0,16801.0,0.57650585]
[1672992023140,0.75052239,16802.0,16801.0,0.07650585]
[1672992023667,0.75052239,16802.0,16801.0,0.57650585]
[1672992024636,0.75052239,16802.0,16801.0,0.07650585]
[1672992027823,1.2434882,16802.0,16801.0,0.07650585]
[1672992038849,0.54495327,16802.0,16801.0,0.07650585]
[1672992039207,0.54995327,16802.0,16801.0,0.10150585]
[1672992039469,0.54495327,16802.0,16801.0,0.07650585]
[1672992039864,1.14512027,16802.0,16801.0,0.10150585]
[1672992042632,1.14512027,16802.0,16801.0,0.10141109]
[1672992042875,0.5485997,16802.0,16801.0,0.08141109]
[1672992044474,1.1437667,16802.0,16801.0,0.08141109]
[1672992044967,1.1437667,16802.0,16801.0,0.08991109]
[1672992047148,1.24732146,16802.0,16801.0,0.08991109]
[1672992051457,1.85898646,16802.0,16801.0,0.08991109]
[1672992052152,1.24732146,16802.0,16801.0,0.08991109]
[1672992052399,1.85898646,16802.0,16801.0,0.08991109]
[1672992052649,0.66865246,16802.0,16801.0,0.08991109]
[1672992052907,0.05698746,16802.0,16801.0,0.08991109]
[1672992058750,0.05698746,16802.0,16801.0,0.58991109]
[1672992060413,0.05698746,16802.0,16801.0,0.08991109]
[1672992064087,0.65215446,16802.0,16801.0,0.08991109]
[1672992064779,0.65215446,16802.0,16801.0,0.08984947]
[1672992069989,0.69611274,16802.0,16801.0,0.08984947]
[1672992070735,1.14267768,16802.0,16801.0,0.08984947]
[1672992070993,1.14267768,16802.0,16801.0,0.06484947]
[1672992071253,1.13767768,16802.0,16801.0,0.12984947]
[1672992071515,1.13767768,16802.0,16801.0,0.06484947]
[1672992071516,1.14667768,16802.0,16801.0,0.06484947]
[1672992071775,1.15867768,16802.0,16801.0,0.12984947]
[1672992072045,0.71211274,16802.0,16801.0,0.12984947]
[1672992073357,0.11694574,16802.0,16801.0,0.12984947]
[1672992076747,0.11694574,16802.0,16801.0,0.62984947]
[1672992077548,0.11694574,16802.0,16801.0,0.0735]
[1672992077773,0.11694574,16802.0,16801.0,0.5735]
[1672992078071,0.11694574,16802.0,16801.0,0.0735]
[1672992078557,0.11694574,16802.0,16801.0,0.14065719]
[1672992079047,0.47417547,16802.0,16801.0,0.14065719]
[1672992086017,0.47408732,16802.0,16801.0,0.14065719]
[1672992087559,0.47408732,16802.0,16801.0,0.21522309]
[1672992088049,0.47408732,16802.0,16801.0,0.14065719]
[1672992088302,0.47408732,16802.0,16801.0,0.64065719]
[1672992090944,0.47408732,16802.0,16801.0,1.23461322]
[1672992091153,0.47408732,16802.0,16801.0,0.64065719]
[1672992092388,0.47408732,16802.0,16801.0,0.14065719]
[1672992092648,0.47408732,16802.0,16801.0,0.54065719]
[1672992092900,0.47408732,16802.0,16801.0,1.13457939]
[1672992094114,0.69805366,16802.0,16801.0,1.13457939]
[1672992094343,1.14459463,16802.0,16801.0,1.13457939]
[1672992094559,0.87667001,16802.0,16801.0,1.13457939]
[1672992095232,1.14459547,16802.0,16801.0,1.43457939]
[1672992095674,0.6980545,16802.0,16801.0,1.43457939]
[1672992096712,0.6980545,16802.0,16801.0,1.3674222]
[1672992098772,0.6980545,16802.0,16801.0,1.9626242]
[1672992099477,0.6980545,16802.0,16801.0,2.03132778]
[1672992100257,0.51940131,16802.0,16801.0,2.03132778]
[1672992100515,0.51940131,16802.0,16801.0,3.27387828]
[1672992100787,0.25147585,16802.0,16801.0,3.86908028]
[1672992101050,0.51940131,16802.0,16801.0,3.86908028]
[1672992101576,0.49840131,16802.0,16801.0,3.80408028]
[1672992101838,0.49940131,16802.0,16801.0,3.94408028]
[1672992106490,0.23147585,16802.0,16801.0,3.94408028]
[1672992106954,0.49940131,16802.0,16801.0,3.94408028]
[1672992107217,0.49940131,16802.0,16801.0,2.75495608]
[1672992107477,0.49940131,16802.0,16801.0,3.34932267]
[1672992112684,0.49940131,16802.0,16801.0,2.10665904]
[1672992113016,0.49940131,16802.0,16801.0,1.51229245]
[1672992113240,0.85663104,16802.0,16801.0,0.61709045]
[1672992113756,0.49940131,16802.0,16801.0,0.61709045]
[1672992114012,0.85663104,16802.0,16801.0,0.61709045]
[1672992114290,0.6780545,16802.0,16801.0,0.61709045]
[1672992114799,0.6780545,16802.0,16801.0,0.21709045]
[1672992115306,1.12459547,16802.0,16801.0,0.41745323]
[1672992115573,0.6780545,16802.0,16801.0,0.41745323]
[1672992115824,0.6780545,16802.0,16801.0,0.71709045]
[1672992116075,0.6780545,16802.0,16801.0,0.21709045]
[1672992116583,0.6780545,16802.0,16801.0,0.61709045]
[1672992117100,0.90061746,16802.0,16801.0,0.21709045]
[1672992119779,0.54338773,16802.0,16801.0,0.21709045]
[1672992121349,0.90054537,16802.0,16801.0,0.21709045]
[1672992125230,0.85659792,16802.0,16801.0,0.21709045]
[1672992125741,0.85659792,16802.0,16801.0,0.71709045]
[1672992126034,0.85659792,16802.0,16801.0,0.21709045]
[1672992127748,0.90054416,16802.0,16801.0,0.21709045]
[1672992130298,0.54338652,16802.0,16801.0,0.21709045]
[1672992132174,0.90052587,16802.0,16801.0,0.21709045]
[1672992132681,0.54338652,16802.0,16801.0,0.21709045]
[1672992136111,0.9004675,16802.0,16801.0,0.21709045]
[1672992136405,0.90046752,16802.0,16801.0,0.21709045]
[1672992136638,0.54338652,16802.0,16801.0,0.21709045]
[1672992136908,0.54338652,16802.0,16801.0,0.21700103]
[1672992138432,0.90043866,16802.0,16801.0,0.21700103]
[1672992138697,0.54338652,16802.0,16801.0,0.21700103]
[1672992140444,0.90042782,16802.0,16801.0,0.21700103]
[1672992140668,0.54338652,16802.0,16801.0,0.21700103]
[1672992140885,0.90042736,16802.0,16801.0,0.21700103]
[1672992143737,0.85648112,16802.0,16801.0,0.21700103]
[1672992143980,0.90041663,16802.0,16801.0,0.21700103]
[1672992144272,0.85648112,16802.0,16801.0,0.21700103]
[1672992145333,0.85648112,16802.0,16801.0,0.81220303]
[1672992145873,0.90041762,16802.0,16801.0,0.81220303]
[1672992149221,0.85648112,16802.0,16801.0,1.4070662]
[1672992150013,0.90042882,16802.0,16801.0,1.4070662]
[1672992152105,0.90042882,16802.0,16801.0,1.40706316]
[1672992152357,0.90042882,16802.0,16801.0,2.40706316]
[1672992152870,0.85648112,16802.0,16801.0,2.40706316]
[1672992153383,1.12439573,16802.0,16801.0,1.81220303]
[1672992153650,0.67785476,16802.0,16801.0,1.81220303]
[1672992153909,0.85648112,16802.0,16801.0,1.81220303]
[1672992154165,0.90043675,16802.0,16801.0,1.81220303]
[1672992154927,0.90043675,16802.0,16801.0,1.21700103]
[1672992156714,0.90043675,16802.0,16801.0,1.81173587]
[1672992157477,0.90043675,16802.0,16801.0,1.21700103]
[1672992157736,0.90043675,16802.0,16801.0,1.81175702]
[1672992158968,0.90043675,16802.0,16801.0,1.81220303]
[1672992162311,0.90043675,16802.0,16801.0,1.21700103]
[1672992168632,0.90043675,16802.0,16801.0,1.81162165]
[1672992168889,0.90043675,16802.0,16801.0,1.21700103]
[1672992169110,0.90043675,16802.0,16801.0,1.81162199]
[1672992169893,0.90043675,16802.0,16801.0,1.21700103]
[1672992170147,0.40994015,16802.0,16801.0,2.4068188]
[1672992170397,0.67786907,16802.0,16801.0,2.4068188]
[1672992176729,0.67786907,16802.0,16801.0,9.9068188]
[1672992176999,0.67786907,16802.0,16801.0,3.0020208]
[1672992177789,0.67786907,16802.0,16801.0,2.4068188]
[1672992180380,0.67786907,16802.0,16801.0,1.21700103]
[1672992180635,0.67786907,16802.0,16801.0,1.81167689]
[1672992180935,1.12441004,16802.0,16801.0,1.81167689]
[1672992181175,0.85648112,16802.0,16801.0,1.21700103]
[1672992181699,0.90043921,16802.0,16801.0,1.21700103]
[1672992183529,0.54339837,16802.0,16801.0,1.21700103]
[1672992184101,0.54339837,16802.0,16801.0,1.21691373]
[1672992186814,0.90063925,16802.0,16801.0,1.21691373]
[1672992187299,0.90063925,16802.0,16801.0,1.81156877]
[1672992187824,0.90063925,16802.0,16801.0,1.21691373]
[1672992191443,0.54339837,16802.0,16801.0,1.21691373]
[1672992192782,0.54340621,16802.0,16801.0,1.21691373]
[1672992193711,1.15507121,16802.0,16801.0,1.21691373]
[1672992195895,1.15507121,16802.0,16801.0,0.21691373]
[1672992197162,0.54340621,16802.0,16801.0,0.21691373]
[1672992198482,0.54340621,16802.0,16801.0,1.21691373]
[1672992198736,0.90060178,16802.0,16801.0,1.21691373]
[1672992200279,0.90060178,16802.0,16801.0,1.93508577]
[1672992200544,0.90060178,16802.0,16801.0,1.92687562]
[1672992204290,0.85664369,16802.0,16801.0,1.92687562]
[1672992205384,0.90059458,16802.0,16801.0,1.92687562]
[1672992210371,0.85664369,16802.0,16801.0,1.92687562]
[1672992210625,0.85664369,16802.0,16801.0,2.521607]
[1672992210898,1.12453688,16802.0,16801.0,2.521607]
[1672992211164,0.85664369,16802.0,16801.0,2.521607]
[1672992211417,0.85664369,16802.0,16801.0,1.92687562]
[1672992211668,1.12453622,16802.0,16801.0,2.52166021]
[1672992212680,1.12453622,16802.0,16801.0,1.92687562]
[1672992212902,1.12453622,16802.0,16801.0,2.52160122]
[1672992213421,0.67798741,16802.0,16801.0,2.52160122]
[1672992213645,1.12453622,16802.0,16801.0,1.92687562]
[1672992214147,0.85664369,16802.0,16801.0,1.92687562]
[1672992214395,0.90059706,16802.0,16801.0,1.92687562]
[1672992217421,0.54340149,16802.0,16801.0,1.92679544]
[1672992218895,0.54340149,16802.0,16801.0,0.92679544]
[1672992225632,0.54340149,16802.0,16801.0,1.92679544]
[1672992225910,0.09685268,16802.0,16801.0,1.92679544]
[1672992227225,0.70851768,16802.0,16801.0,1.92679544]
[1672992227746,0.09685268,16802.0,16801.0,1.92679544]
[1672992228247,0.09685268,16802.0,16801.0,0.92679544]
[1672992228551,0.70851768,16802.0,16801.0,0.2086234]
[1672992229038,0.09685268,16802.0,16801.0,0.2086234]
[1672992230385,0.54342201,16802.0,16801.0,0.2086234]
[1672992230652,0.54342201,16802.0,16801.0,0.20956152]
[1672992230886,0.54342201,16802.0,16801.0,0.2086234]
[1672992232193,0.54342201,16802.0,16801.0,1.2086234]
[1672992232511,0.54342306,16802.0,16801.0,1.2086234]
[1672992233574,0.09685268,16802.0,16801.0,1.2086234]
[1672992235676,0.70851768,16802.0,16801.0,1.2086234]
[1672992236953,0.09685268,16802.0,16801.0,1.2086234]
[1672992239421,0.54337347,16802.0,16801.0,1.2086234]
[1672992240495,0.09685268,16802.0,16801.0,1.20852237]
[1672992241271,0.54336641,16802.0,16801.0,1.20852237]
[1672992242292,1.15503141,16802.0,16801.0,1.20852237]
[1672992242556,0.70851768,16802.0,16801.0,1.20852237]
[1672992244418,0.09685268,16802.0,16801.0,1.20852237]
[1672992244929,0.70851768,16802.0,16801.0,1.20852237]
[1672992249817,0.70851768,16802.0,16801.0,0.20852237]
[1672992249818,2.54262385,16802.0,16801.0,0.20852237]
[1672992250822,2.00675143,16802.0,16801.0,0.20852237]
[1672992251328,1.41158443,16802.0,16801.0,0.20852237]
[1672992257882,0.79991943,16802.0,16801.0,0.20852237]
[1672992258441,1.41158443,16802.0,16801.0,0.20852237]
[1672992263522,1.41158443,16802.0,16801.0,0.2084608]
[1672992269686,1.41158443,16802.0,16801.0,1.2084608]
[1672992269908,0.79991943,16802.0,16801.0,1.2084608]
[1672992273264,0.09685268,16802.0,16801.0,1.2084608]
[1672992273499,0.54350204,16802.0,16801.0,1.2084608]
[1672992274268,0.70851768,16802.0,16801.0,1.2084608]
[1672992274788,0.09685268,16802.0,16801.0,1.2084608]
[1672992277215,0.54348475,16802.0,16801.0,1.2084608]
[1672992277755,0.54348475,16802.0,16801.0,1.70617454]
[1672992278226,0.90077664,16802.0,16801.0,1.70617454]
[1672992279476,0.85682327,16802.0,16801.0,2.23547188]
[1672992279740,1.12475345,16802.0,16801.0,2.23547188]
[1672992280228,0.85682327,16802.0,16801.0,1.23547188]
[1672992280490,0.67807739,16802.0,16801.0,1.23547188]
[1672992281770,0.67807739,16802.0,16801.0,2.23547188]
[1672992282022,0.67807739,16802.0,16801.0,1.73775814]
[1672992283609,0.67807739,16802.0,16801.0,2.33296014]
[1672992287106,0.4993267,16802.0,16801.0,2.63607792]
[1672992288138,0.85661859,16802.0,16801.0,2.63607792]
[1672992288403,0.4993267,16802.0,16801.0,2.63607792]
[1672992296305,0.46435109,16802.0,16801.0,3.07889014]
[1672992298071,0.46435109,16802.0,16801.0,3.67409214]
[1672992298816,0.1964649,16802.0,16801.0,3.67409214]
[1672992299921,0.1964649,16802.0,16801.0,2.92816214]
[1672992300179,0.46435109,16802.0,16801.0,2.92816214]
[1672992300424,1.93039509,16802.0,16801.0,2.92816214]
[1672992300924,1.93039509,16802.0,16801.0,3.48853292]
[1672992301245,1.93039509,16802.0,16801.0,2.92816214]
[1672992302502,1.93033012,16802.0,16801.0,3.34066188]
[1672992302745,1.93033012,16802.0,16801.0,2.74545988]
[1672992303522,2.10908081,16802.0,16801.0,2.21616254]
[1672992306051,2.10908081,16802.0,16801.0,1.8036628]
[1672992306268,2.28760754,16802.0,16801.0,1.8036628]
[1672992306550,2.10908081,16802.0,16801.0,1.8036628]
[1672992306805,2.28761857,16802.0,16801.0,1.8036628]
[1672992307029,1.93032668,16802.0,16801.0,1.8036628]
[1672992308316,1.93032668,16802.0,16801.0,2.36409059]
[1672992308885,1.93032668,16802.0,16801.0,3.07372753]
[1672992309096,1.93032668,16802.0,16801.0,3.66892953]
[1672992310106,1.93032668,16802.0,16801.0,3.74175207]
[1672992310604,1.93032668,16802.0,16801.0,3.66892953]
[1672992310867,1.93032668,16802.0,16801.0,3.07372753]
[1672992311563,1.93032668,16802.0,16801.0,2.51329974]
[1672992311815,2.28761857,16802.0,16801.0,2.51329974]
[1672992312280,2.28765954,16802.0,16801.0,2.51329974]
[1672992312823,2.10908081,16802.0,16801.0,2.51329974]
[1672992313820,2.28766205,16802.0,16801.0,2.51329974]
[1672992314286,2.10908081,16802.0,16801.0,2.51329974]
[1672992317414,2.28771315,16802.0,16801.0,2.51329974]
[1672992318216,2.28771315,16802.0,16801.0,3.07390586]
[1672992318461,2.10908081,16802.0,16801.0,3.07385241]
[1672992318716,2.10908081,16802.0,16801.0,2.51329974]
[1672992319216,2.10908081,16802.0,16801.0,3.10850174]
[1672992320272,2.28771864,16802.0,16801.0,3.66911636]
[1672992320505,2.10908081,16802.0,16801.0,2.51329974]
[1672992320755,2.10916018,16802.0,16801.0,2.51329974]
[1672992321796,2.10916018,16802.0,16801.0,3.66894529]
[1672992322058,2.10916018,16802.0,16801.0,3.07374329]
[1672992322311,2.10916018,16802.0,16801.0,3.9711317]
[1672992322545,2.28780102,16802.0,16801.0,2.81548615]
[1672992322796,2.10916018,16802.0,16801.0,2.51329974]
[1672992323050,2.28780357,16802.0,16801.0,2.51329974]
[1672992323306,2.28780357,16802.0,16801.0,3.07404523]
[1672992323553,1.93051168,16802.0,16801.0,3.07402237]
[1672992324319,2.28780357,16802.0,16801.0,2.51329974]
[1672992324569,1.93051168,16802.0,16801.0,2.51329974]
[1672992325040,2.28780357,16802.0,16801.0,2.51329974]
[1672992326077,1.93051168,16802.0,16801.0,3.07392848]
[1672992326652,1.93051168,16802.0,16801.0,3.66913048]
[1672992329618,1.93051168,16802.0,16801.0,4.22033153]
[1672992330338,1.93051168,16802.0,16801.0,4.52033153]
[1672992332373,1.93051168,16802.0,16801.0,3.66913048]
[1672992333405,1.93051168,16802.0,16801.0,5.7660194]
[1672992333406,1.41226264,16802.0,16801.0,5.7660194]
[1672992333684,0.47417126,16802.0,16801.0,5.49838895]
[1672992333934,0.47417126,16802.0,16801.0,5.95269885]
[1672992334184,0.47417126,16802.0,16801.0,5.31981269]
[1672992334715,0.47417126,16802.0,16801.0,5.91368982]
[1672992334997,0.47417126,16802.0,16801.0,6.30297366]
[1672992335253,0.47417126,16802.0,16801.0,5.20194278]
[1672992335525,0.47417126,16802.0,16801.0,5.02362242]
[1672992336875,0.47417126,16802.0,16801.0,2.97384401]
[1672992337069,0.65281465,16802.0,16801.0,2.37014201]
[1672992337329,0.65281465,16802.0,16801.0,1.77626488]
[1672992337602,0.65281465,16802.0,16801.0,1.79418581]
[1672992337849,0.47417126,16802.0,16801.0,5.0137591]
[1672992338122,0.47417126,16802.0,16801.0,5.19207946]
[1672992338360,0.47417126,16802.0,16801.0,5.0137591]
[1672992338621,0.47417126,16802.0,16801.0,5.60763623]
[1672992339141,0.47417126,16802.0,16801.0,5.78595659]
[1672992341508,0.47417126,16802.0,16801.0,5.60763623]
[1672992343572,0.47417126,16802.0,16801.0,5.78595659]
[1672992348672,0.47417126,16802.0,16801.0,5.60763623]
[1672992350913,0.47417126,16802.0,16801.0,5.78595659]
[1672992361967,0.47417126,16802.0,16801.0,6.05343108]
[1672992362470,0.47417126,16802.0,16801.0,6.81554575]
[1672992363229,0.47417126,16802.0,16801.0,6.05343108]
[1672992363507,1e-08,16802.0,16801.0,6.81555311]
[1672992363731,1e-08,16802.0,16801.0,6.05343108]
[1672992363998,1e-08,16802.0,16801.0,6.77677597]
[1672992364772,1e-08,16802.0,16801.0,6.05343108]
[1672992365268,1e-08,16802.0,16801.0,6.77714482]
[1672992365538,1e-08,16802.0,16801.0,6.05343108]
[1672992367585,1e-08,16802.0,16801.0,6.77737233]
[1672992371028,1e-08,16802.0,16801.0,7.13421293]